fUSD/lending_fUSD_20260429
["ID","MTS","AMOUNT","RATE_DAILY","PERIOD"]
[421309886,1777402240624,-500.0,8.73e-05,2]
[421309888,1777402240633,-500.0,8.73e-05,2]
[421309890,1777402240643,-500.0,8.73e-05,2]
[421309892,1777402240652,-500.0,8.73e-05,2]
[421309894,1777402240662,-500.0,8.73e-05,2]
[421309896,1777402240672,-500.0,8.73e-05,2]
[421309899,1777402240681,-500.0,8.73e-05,2]
[421309901,1777402240691,-500.0,0.0001,2]
[421309903,1777402240700,-594.0746945,0.00010274,2]
[421309904,1777402240709,-265.836,0.00011519,2]
[421309905,1777402240718,-1041.07557258,0.00012,2]
[421309906,1777402240776,-500.0,8.73e-05,2]
[421309907,1777402240785,-500.0,8.73e-05,2]
[421309908,1777402240796,-500.0,8.73e-05,2]
[421309909,1777402240806,-500.0,8.73e-05,2]
[421309910,1777402240816,-124370.01263296,0.00012,2]
[421309911,1777402240825,-150.0,0.00012,2]
[421309912,1777402240835,-1996.14741271,0.00012,2]
[421309913,1777402240844,-1000.0,0.00012,2]
[421309914,1777402240853,-1000.0,0.00012,2]
[421309915,1777402240863,-744.97471172,0.00012,2]
[421309916,1777402240872,-150.0,0.00012,2]
[421309917,1777402240882,-8052.10225055,0.00012,2]
[421309918,1777402240891,-150.0,0.00012,2]
[421309919,1777402240901,-62969.17288476,0.00012,2]
[421309920,1777402240910,-1000.0,0.00012,2]
[421309921,1777402240920,-240.109763,0.00012,2]
[421309923,1777402240929,-200.0,0.00012,2]
[421309925,1777402240938,-179.0,0.00012,2]
[421309927,1777402240947,-179.0,0.00012,2]
[421309929,1777402240956,-179.0,0.00012,2]
[421309931,1777402240965,-501.41694541,0.00012149,2]
[421309933,1777402240975,-2131.0,0.000122,2]
[421309935,1777402240985,-478.75219294,0.00012273,2]
[421309937,1777402240995,-162.29107849,0.00012356,2]
[421309939,1777402241004,-160.0,0.00012356,2]
[421309941,1777402241013,-310.5907802,0.000125,2]
[421309943,1777402241023,-1005.10055824,0.00012521,2]
[421309945,1777402241033,-1000.0,0.00012521,2]
[421309947,1777402241042,-1000.0,0.00012521,2]
[421309949,1777402241051,-1000.0,0.00012521,2]
[421309951,1777402241061,-1000.0,0.00012521,2]
[421309953,1777402241070,-1000.0,0.00012521,2]
[421309955,1777402241080,-1000.0,0.00012521,2]
[421309957,1777402241091,-1000.0,0.00012521,2]
[421309959,1777402241100,-674.0,0.00012555,2]
[421309961,1777402241110,-150.0,0.00012739,2]
[421309962,1777402241120,-1252.0,0.00012781,2]
[421309963,1777402241130,-15486.0,0.00012877,2]
[421309964,1777402241139,-1578.0,0.00012893,2]
[421309965,1777402241148,-1578.0,0.00012893,2]
[421309966,1777402241158,-1578.0,0.00012893,2]
[421309967,1777402241167,-1609.0,0.00012893,2]
[421309968,1777402241176,-162.0,0.00012893,2]
[421309969,1777402241185,-162.0,0.00012893,2]
[421309970,1777402241194,-2819.0,0.00012893,2]
[421309971,1777402241204,-162.0,0.00012893,2]
[421309972,1777402241214,-2819.0,0.00012893,2]
[421309974,1777402241223,-166.0,0.00012893,2]
[421309976,1777402241232,-2819.0,0.00012893,2]
[421309978,1777402241242,-2819.0,0.00012893,2]
[421309980,1777402241251,-2819.0,0.00012893,2]
[421309981,1777402241260,-2819.0,0.00012893,2]
[421309983,1777402241270,-2819.0,0.00012893,2]
[421309984,1777402241279,-2819.0,0.00012893,2]
[421309986,1777402241288,-2853.0,0.00012893,2]
[421309987,1777402241298,-25193.67765843,0.00013,5]
[421309988,1777402241307,-250.0,0.00013,2]
[421309989,1777402241317,-226.82336796,0.00013045,2]
[421309990,1777402241328,-5400.77747349,0.0001305,2]
[421309991,1777402241337,-1500.0,0.00013068,2]
[421309992,1777402241346,-1500.0,0.00013068,2]
[421309993,1777402241356,-853.03049803,0.00013068,2]
[421309994,1777402241366,-448.98232598,0.00013068,2]
[421309995,1777402241375,-1473.86918957,0.00013068,2]
[421309996,1777402241385,-1500.0,0.00013068,2]
[421309997,1777402241394,-1500.0,0.00013068,2]
[421309998,1777402241404,-1421.47789294,0.00013184,2]
[421309999,1777402241414,-155.0,0.00013189,2]
[421310000,1777402241424,-155.0,0.00013189,2]
[421310001,1777402241434,-1000.0,0.000135,2]
[421310002,1777402241444,-2000.0,0.00013616,2]
[421310003,1777402241453,-2000.0,0.00013616,2]
[421310004,1777402241463,-2000.0,0.00013616,2]
[421310005,1777402241473,-10003.0,0.0001366,2]
[421310006,1777402241482,-503.85149067,0.00013698,2]
[421310007,1777402241492,-500.0,0.00013698,2]
[421310008,1777402241501,-500.0,0.00013698,2]
[421310009,1777402241511,-500.0,0.00013698,2]
[421310010,1777402241520,-500.0,0.00013698,2]
[421310011,1777402241530,-500.0,0.00013698,2]
[421310012,1777402241539,-500.0,0.00013698,2]
[421310013,1777402241549,-500.0,0.00013698,2]
[421310014,1777402241558,-500.0,0.00013698,2]
[421310015,1777402241567,-500.0,0.00013698,2]
[421310016,1777402241577,-500.0,0.00013698,2]
[421310017,1777402241587,-500.0,0.00013698,2]
[421310018,1777402241596,-500.0,0.00013698,2]
[421310019,1777402241606,-502.30211411,0.00013698,2]
[421310020,1777402241616,-607.8,0.00013698,2]
[421310021,1777402241625,-607.8,0.00013698,2]
[421310022,1777402241634,-607.8,0.00013698,2]
[421310023,1777402241644,-607.8,0.00013698,2]
[421310024,1777402241653,-607.8,0.00013698,2]
[421310025,1777402241662,-607.8,0.00013698,2]
[421310026,1777402241672,-607.8,0.00013698,2]
[421310027,1777402241681,-607.8,0.00013698,2]
[421310028,1777402241690,-607.8,0.00013698,2]
[421310029,1777402241699,-607.8,0.00013698,2]
[421310030,1777402241709,-592.74,0.00013698,2]
[421310031,1777402241718,-592.74,0.00013698,2]
[421310032,1777402241727,-592.74,0.00013698,2]
[421310033,1777402241737,-592.74,0.00013698,2]
[421310034,1777402241746,-592.74,0.00013698,2]
[421310035,1777402241756,-592.74,0.00013698,2]
[421310036,1777402241765,-592.74,0.00013698,2]
[421310037,1777402241774,-592.74,0.00013698,2]
[421310038,1777402241783,-500.0,0.00013698,2]
[421310039,1777402241792,-592.74,0.00013698,2]
[421310040,1777402241802,-500.0,0.00013698,2]
[421310041,1777402241811,-592.74,0.00013698,2]
[421310042,1777402241820,-344.72811691,0.00013698,2]
[421310043,1777402241829,-500.0,0.00013698,2]
[421310044,1777402241839,-500.0,0.00013698,2]
[421310045,1777402241848,-193.27946743,0.00013698,2]
[421310046,1777402241858,-500.0,0.00013698,2]
[421310047,1777402241867,-500.0,0.00013698,2]
[421310048,1777402241877,-500.0,0.00013698,2]
[421310049,1777402241886,-500.0,0.00013698,2]
[421310050,1777402241895,-500.0,0.00013698,2]
[421310051,1777402241904,-500.0,0.00013698,2]
[421310052,1777402241914,-500.0,0.00013698,2]
[421310053,1777402241923,-1118.78,0.00013698,2]
[421310054,1777402241932,-1118.78,0.00013698,2]
[421310055,1777402241941,-1118.78,0.00013698,2]
[421310056,1777402241951,-1118.78,0.00013698,2]
[421310057,1777402241960,-1118.78,0.00013698,2]
[421310058,1777402241969,-1118.78,0.00013698,2]
[421310059,1777402241978,-1118.78,0.00013698,2]
[421310060,1777402241988,-500.0,0.00013698,2]
[421310061,1777402241997,-500.0,0.00013698,2]
[421310062,1777402242006,-500.0,0.00013698,2]
[421310063,1777402242015,-500.0,0.00013698,2]
[421310064,1777402242024,-500.0,0.00013698,2]
[421310065,1777402242034,-500.0,0.00013698,2]
[421310066,1777402242043,-500.0,0.00013698,2]
[421310067,1777402242053,-865.81,0.00013698,2]
[421310068,1777402242062,-865.81,0.00013698,2]
[421310069,1777402242071,-865.81,0.00013698,2]
[421310070,1777402242081,-865.81,0.00013698,2]
[421310071,1777402242090,-865.81,0.00013698,2]
[421310072,1777402242099,-865.81,0.00013698,2]
[421310073,1777402242109,-865.81,0.00013698,2]
[421310074,1777402242118,-865.81,0.00013698,2]
[421310075,1777402242128,-746.52,0.00013698,2]
[421310076,1777402242137,-746.52,0.00013698,2]
[421310077,1777402242146,-746.52,0.00013698,2]
[421310078,1777402242156,-746.52,0.00013698,2]
[421310079,1777402242165,-746.52,0.00013698,2]
[421310080,1777402242175,-746.52,0.00013698,2]
[421310081,1777402242184,-746.52,0.00013698,2]
[421310082,1777402242193,-746.52,0.00013698,2]
[421310084,1777402242203,-536.09,0.00013698,2]
[421310085,1777402242212,-536.09,0.00013698,2]
[421310088,1777402242222,-536.09,0.00013698,2]
[421310089,1777402242231,-536.09,0.00013698,2]
[421310090,1777402242240,-536.09,0.00013698,2]
[421310091,1777402242250,-536.09,0.00013698,2]
[421310092,1777402242259,-536.09,0.00013698,2]
[421310093,1777402242269,-714.97,0.00013698,2]
[421310094,1777402242278,-714.97,0.00013698,2]
[421310096,1777402242288,-714.97,0.00013698,2]
[421310098,1777402242298,-714.97,0.00013698,2]
[421310099,1777402242308,-714.97,0.00013698,2]
[421310100,1777402242317,-714.97,0.00013698,2]
[421310101,1777402242328,-714.97,0.00013698,2]
[421310102,1777402242338,-1824.27,0.00013698,2]
[421310103,1777402242348,-1824.27,0.00013698,2]
[421310104,1777402242357,-1824.27,0.00013698,2]
[421310105,1777402242367,-1824.27,0.00013698,2]
[421310107,1777402242377,-1824.27,0.00013698,2]
[421310108,1777402242386,-1824.27,0.00013698,2]
[421310109,1777402242396,-1824.27,0.00013698,2]
[421310110,1777402242405,-978.93,0.00013698,2]
[421310111,1777402242414,-978.93,0.00013698,2]
[421310112,1777402242423,-978.93,0.00013698,2]
[421310113,1777402242433,-978.93,0.00013698,2]
[421310114,1777402242443,-978.93,0.00013698,2]
[421310115,1777402242452,-978.93,0.00013698,2]
[421310116,1777402242462,-978.93,0.00013698,2]
[421310117,1777402242472,-978.93,0.00013698,2]
[421310118,1777402242480,-978.93,0.00013698,2]
[421310119,1777402242490,-978.93,0.00013698,2]
[421310120,1777402242498,-1048.28,0.00013698,2]
[421310121,1777402242507,-1048.28,0.00013698,2]
[421310122,1777402242517,-1048.28,0.00013698,2]
[421310123,1777402242527,-1048.28,0.00013698,2]
[421310124,1777402242536,-1048.28,0.00013698,2]
[421310125,1777402242545,-1048.28,0.00013698,2]
[421310126,1777402242555,-1048.28,0.00013698,2]
[421310127,1777402242564,-500.0,0.00013698,2]
[421310128,1777402242572,-500.0,0.00013698,2]
[421310129,1777402242582,-500.0,0.00013698,2]
[421310130,1777402242591,-500.0,0.00013698,2]
[421310131,1777402242599,-500.0,0.00013698,2]
[421310132,1777402242609,-500.0,0.00013698,2]
[421310133,1777402242618,-500.0,0.00013698,2]
[421310134,1777402242627,-507.14572465,0.00013698,2]
[421310135,1777402242636,-500.0,0.00013698,2]
[421310136,1777402242645,-500.0,0.00013698,2]
[421310137,1777402242655,-500.0,0.00013698,2]
[421310138,1777402242664,-500.0,0.00013698,2]
[421310139,1777402242674,-500.0,0.00013698,2]
[421310140,1777402242684,-500.0,0.00013698,2]
[421310141,1777402242694,-500.0,0.00013698,2]
[421310142,1777402242703,-500.0,0.00013698,2]
[421310143,1777402242712,-500.0,0.00013698,2]
[421310144,1777402242722,-500.0,0.00013698,2]
[421310145,1777402242732,-500.0,0.00013698,2]
[421310146,1777402242740,-500.0,0.00013698,2]
[421310147,1777402242750,-500.0,0.00013698,2]
[421310148,1777402242759,-649.02147419,0.00013698,2]
[421310149,1777402242768,-500.0,0.00013698,2]
[421310150,1777402242777,-500.0,0.00013698,2]
[421310151,1777402242787,-639.8109882,0.00013698,2]
[421310152,1777402242797,-1030.87,0.00013698,2]
[421310153,1777402242806,-1030.87,0.00013698,2]
[421310154,1777402242816,-1030.87,0.00013698,2]
[421310155,1777402242825,-1030.87,0.00013698,2]
[421310156,1777402242834,-1030.87,0.00013698,2]
[421310157,1777402242844,-1030.87,0.00013698,2]
[421310158,1777402242854,-1030.87,0.00013698,2]
[421310159,1777402242863,-1030.87,0.00013698,2]
[421310160,1777402243073,-533.63,0.00013698,2]
[421310161,1777402243083,-533.63,0.00013698,2]
[421310162,1777402243092,-533.63,0.00013698,2]
[421310163,1777402243101,-533.63,0.00013698,2]
[421310164,1777402243111,-533.63,0.00013698,2]
[421310165,1777402243120,-533.63,0.00013698,2]
[421310166,1777402243129,-533.63,0.00013698,2]
[421310167,1777402243139,-533.63,0.00013698,2]
[421310168,1777402243148,-741.78,0.00013698,2]
[421310169,1777402243157,-741.78,0.00013698,2]
[421310170,1777402243166,-741.78,0.00013698,2]
[421310171,1777402243175,-741.78,0.00013698,2]
[421310172,1777402243185,-741.78,0.00013698,2]
[421310173,1777402243194,-741.78,0.00013698,2]
[421310174,1777402243203,-741.78,0.00013698,2]
[421310175,1777402243213,-741.78,0.00013698,2]
[421310176,1777402243222,-500.0,0.00013698,2]
[421310177,1777402243232,-500.0,0.00013698,2]
[421310178,1777402243241,-500.0,0.00013698,2]
[421310179,1777402243250,-500.0,0.00013698,2]
[421310180,1777402243259,-500.0,0.00013698,2]
[421310181,1777402243268,-500.0,0.00013698,2]
[421310182,1777402243278,-500.0,0.00013698,2]
[421310183,1777402243287,-500.0,0.00013698,2]
[421310184,1777402243296,-500.0,0.00013698,2]
[421310185,1777402243305,-500.0,0.00013698,2]
[421310186,1777402243314,-500.0,0.00013698,2]
[421310187,1777402243323,-500.0,0.00013698,2]
[421310188,1777402243333,-500.0,0.00013698,2]
[421310189,1777402243342,-500.0,0.00013698,2]
[421310190,1777402243351,-500.0,0.00013698,2]
[421310191,1777402243360,-500.0,0.00013698,2]
[421310192,1777402243370,-500.0,0.00013698,2]
[421310193,1777402243379,-500.0,0.00013698,2]
[421310194,1777402243388,-500.0,0.00013698,2]
[421310195,1777402243398,-500.0,0.00013698,2]
[421310196,1777402243407,-260.22531853,0.00013698,2]
[421310197,1777402243416,-719.9,0.00013698,2]
[421310198,1777402243425,-719.9,0.00013698,2]
[421310199,1777402243435,-719.9,0.00013698,2]
[421310200,1777402243444,-719.9,0.00013698,2]
[421310201,1777402243454,-719.9,0.00013698,2]
[421310202,1777402243463,-719.9,0.00013698,2]
[421310203,1777402243472,-719.9,0.00013698,2]
[421310204,1777402243481,-719.9,0.00013698,2]
[421310205,1777402243491,-500.0,0.00013698,2]
[421310206,1777402243500,-500.0,0.00013698,2]
[421310207,1777402243509,-500.0,0.00013698,2]
[421310208,1777402243519,-500.0,0.00013698,2]
[421310209,1777402243527,-500.0,0.00013698,2]
[421310210,1777402243538,-500.0,0.00013698,2]
[421310211,1777402243547,-500.0,0.00013698,2]
[421310212,1777402243556,-500.0,0.00013698,2]
[421310213,1777402243566,-500.0,0.00013698,2]
[421310214,1777402243575,-500.0,0.00013698,2]
[421310215,1777402243584,-500.0,0.00013698,2]
[421310216,1777402243594,-500.0,0.00013698,2]
[421310217,1777402243604,-500.0,0.00013698,2]
[421310218,1777402243614,-500.0,0.00013698,2]
[421310219,1777402243623,-500.0,0.00013698,2]
[421310220,1777402243632,-500.0,0.00013698,2]
[421310221,1777402243641,-500.0,0.00013698,2]
[421310222,1777402243650,-500.0,0.00013698,2]
[421310223,1777402243659,-500.0,0.00013698,2]
[421310224,1777402243669,-500.0,0.00013698,2]
[421310225,1777402243679,-500.0,0.00013698,2]
[421310226,1777402243689,-500.0,0.00013698,2]
[421310227,1777402243697,-500.0,0.00013698,2]
[421310228,1777402243707,-500.0,0.00013698,2]
[421310229,1777402243716,-1801.93,0.00013698,2]
[421310230,1777402243726,-1801.93,0.00013698,2]
[421310231,1777402243735,-1801.93,0.00013698,2]
[421310232,1777402243744,-1801.93,0.00013698,2]
[421310233,1777402243753,-1801.93,0.00013698,2]
[421310234,1777402243762,-1801.93,0.00013698,2]
[421310235,1777402243772,-1801.93,0.00013698,2]
[421310236,1777402243781,-1801.93,0.00013698,2]
[421310237,1777402243790,-179.0,0.00013698,2]
[421310238,1777402243800,-179.0,0.00013698,2]
[421310239,1777402243809,-179.0,0.00013698,2]
[421310240,1777402243818,-180.74724279,0.00013698,2]
[421310241,1777402243827,-500.0,0.00013698,2]
[421310242,1777402243836,-500.0,0.00013698,2]
[421310243,1777402243846,-500.0,0.00013698,2]
[421310244,1777402243855,-500.0,0.00013698,2]
[421310245,1777402243864,-274.51509202,0.00013698,2]
[421310246,1777402243874,-500.0,0.00013698,2]
[421310247,1777402243883,-500.0,0.00013698,2]
[421310248,1777402243893,-500.0,0.00013698,2]
[421310249,1777402243902,-500.0,0.00013698,2]
[421310250,1777402243911,-500.0,0.00013698,2]
[421310251,1777402243920,-500.0,0.00013698,2]
[421310252,1777402243930,-500.0,0.00013698,2]
[421310253,1777402243939,-500.0,0.00013698,2]
[421310254,1777402243949,-195.64,0.00013699,2]
[421310255,1777402243958,-163.03,0.00013699,2]
[421310256,1777402243967,-815.17,0.00013699,2]
[421310257,1777402243976,-369.0,0.00013699,2]
[421310258,1777402243985,-358.0,0.00013699,2]
[421310259,1777402243995,-358.0,0.00013699,2]
[421310260,1777402244003,-358.0,0.00013699,2]
[421310261,1777402244013,-358.0,0.00013699,2]
[421310262,1777402244023,-358.0,0.00013699,2]
[421310263,1777402244032,-409.0,0.00013699,2]
[421310264,1777402244042,-359.0,0.00013699,2]
[421310265,1777402244051,-359.0,0.00013699,2]
[421310266,1777402244060,-359.0,0.00013699,2]
[421310267,1777402244070,-359.0,0.00013699,2]
[421310268,1777402244079,-359.0,0.00013699,2]
[421310269,1777402244088,-359.0,0.00013699,2]
[421310270,1777402244097,-289.0,0.00013699,2]
[421310271,1777402244107,-363.0,0.00013699,2]
[421310272,1777402244119,-221.70666474,0.00013699,2]
[421310273,1777402244128,-363.0,0.00013699,2]
[421310274,1777402244138,-363.0,0.00013699,2]
[421310275,1777402244147,-363.0,0.00013699,2]
[421310276,1777402244160,-363.0,0.00013699,2]
[421310277,1777402244174,-363.0,0.00013699,2]
[421310278,1777402244184,-363.0,0.00013699,2]
[421310279,1777402244193,-361.0,0.00013699,2]
[421310280,1777402244203,-361.0,0.00013699,2]
[421310281,1777402244212,-361.0,0.00013699,2]
[421310282,1777402244221,-361.0,0.00013699,2]
[421310283,1777402244230,-361.0,0.00013699,2]
[421310284,1777402244240,-361.0,0.00013699,2]
[421310285,1777402244249,-361.0,0.00013699,2]
[421310286,1777402244259,-361.0,0.00013699,2]
[421310287,1777402244268,-361.0,0.00013699,2]
[421310288,1777402244279,-195.0,0.00013699,2]
[421310289,1777402244288,-357.0,0.00013699,2]
[421310290,1777402244297,-357.0,0.00013699,2]
[421310291,1777402244306,-357.0,0.00013699,2]
[421310292,1777402244315,-357.0,0.00013699,2]
[421310293,1777402244325,-357.0,0.00013699,2]
[421310294,1777402244335,-357.0,0.00013699,2]
[421310295,1777402244344,-357.0,0.00013699,2]
[421310296,1777402244354,-357.0,0.00013699,2]
[421310297,1777402244363,-357.0,0.00013699,2]
[421310298,1777402244373,-357.0,0.00013699,2]
[421310299,1777402244383,-357.0,0.00013699,2]
[421310300,1777402244392,-357.0,0.00013699,2]
[421310301,1777402244402,-357.0,0.00013699,2]
[421310302,1777402244411,-357.0,0.00013699,2]
[421310303,1777402244420,-357.0,0.00013699,2]
[421310304,1777402244430,-288.0,0.00013699,2]
[421310305,1777402244439,-355.0,0.00013699,2]
[421310306,1777402244448,-355.0,0.00013699,2]
[421310307,1777402244457,-355.0,0.00013699,2]
[421310308,1777402244467,-355.0,0.00013699,2]
[421310309,1777402244476,-1107.0,0.00013699,2]
[421310310,1777402244485,-787.63,0.00013699,2]
[421310311,1777402244494,-193.97840707,0.00013699,2]
[421310312,1777402244504,-150.0,0.000137,2]
[421310313,1777402244513,-150.0,0.000137,2]
[421310314,1777402244522,-150.0,0.000137,2]
[421310315,1777402244531,-220.10119035,0.000137,2]
[421310316,1777402244541,-4575.8162679,0.00013784,2]
[421310317,1777402244551,-163.8945,0.00013966,7]
[421310318,1777402244560,-787.63,0.00013973,2]
[421310319,1777402244569,-500.0,0.00013989,2]
[421310320,1777402244579,-1118.78,0.00013989,2]
[421310321,1777402244588,-500.0,0.00013989,2]
[421310322,1777402244597,-536.09,0.00013989,2]
[421310323,1777402244606,-714.97,0.00013989,2]
[421310324,1777402244615,-1824.27,0.00013989,2]
[421310325,1777402244625,-1048.28,0.00013989,2]
[421310326,1777402244634,-500.0,0.00013989,2]
[421310327,1777402244644,-500.0,0.00013989,2]
[421310328,1777402244654,-46293.34228255,0.0001399,2]
[421310329,1777402244663,-200.0,0.00014,2]
[421310330,1777402244673,-607.8,0.00014041,2]
[421310331,1777402244682,-592.74,0.00014041,2]
[421310332,1777402244691,-978.93,0.00014041,2]
[421310333,1777402244700,-649.23064601,0.00014164,2]
[421310334,1777402244709,-2500.0,0.00014164,2]
[421310335,1777402244718,-2500.0,0.00014164,2]
[421310336,1777402244727,-1021.0026166,0.00014183,2]
[421310337,1777402244736,-787.63,0.00014247,2]
[421310338,1777402244746,-155.0,0.00014388,2]
[421310339,1777402244755,-155.0,0.00014388,2]
[421310340,1777402244764,-10428.28875742,0.0001439,2]
[421310341,1777402244774,-623.0,0.00014519,2]
[421310342,1777402244784,-3532.0,0.00014519,2]
[421310343,1777402244793,-1350.0,0.00014519,2]
[421310344,1777402244803,-1049.0,0.00014519,2]
[421310345,1777402244812,-1266.0,0.00014519,2]
[421310346,1777402244822,-416.0,0.00014519,2]
[421310347,1777402244831,-150.0,0.00014519,2]
[421310348,1777402244841,-3782.0,0.00014519,2]
[421310349,1777402244850,-150.0,0.00014519,2]
[421310350,1777402244859,-787.63,0.00014521,2]
[421310351,1777402244868,-3000.0,0.00014712,2]
[421310352,1777402244877,-3000.0,0.00014712,2]
[421310353,1777402244887,-787.63,0.00014795,2]
[421310354,1777402244897,-1621.22608651,0.00014938,2]
[421310355,1777402244906,-150.0,0.00014979,2]
[421310356,1777402244915,-2000.0,0.00014987,5]
[421310357,1777402244924,-533.63,0.00014999,2]
[421310358,1777402244933,-719.9,0.00014999,2]
[421310359,1777402244943,-500.0,0.00014999,2]
[421310360,1777402244952,-500.0,0.00014999,2]
[421310361,1777402244962,-500.0,0.00014999,2]
[421310362,1777402244971,-8065.61703538,0.00015,2]
[421310363,1777402244980,-248.0,0.00015,2]
[421310364,1777402244990,-300.0,0.00015,2]
[421310365,1777402244999,-160.0,0.00015,2]
[421310366,1777402245009,-865.81,0.00015027,2]
[421310367,1777402245018,-746.52,0.00015027,2]
[421310368,1777402245027,-500.0,0.00015027,2]
[421310369,1777402245036,-1030.87,0.00015027,2]
[421310370,1777402245045,-741.78,0.00015027,2]
[421310371,1777402245054,-500.0,0.00015027,2]
[421310372,1777402245063,-500.0,0.00015027,2]
[421310373,1777402245072,-1801.93,0.00015027,2]
[421310374,1777402245081,-787.63,0.00015068,2]
[421310375,1777402245091,-150.0,0.00015068,2]
[421310376,1777402245100,-3500.0,0.0001526,2]
[421310377,1777402245109,-3500.0,0.0001526,2]
[421310378,1777402245118,-477.79,0.00015273,2]
[421310379,1777402245128,-443.7,0.00015273,2]
[421310380,1777402245137,-267.57,0.000153,4]
[421310381,1777402245146,-787.63,0.00015342,2]
[421310382,1777402245156,-1681.63200554,0.00015422,4]
[421310383,1777402245166,-404.58,0.00015471,2]
[421310384,1777402245175,-787.63,0.00015616,2]
[421310385,1777402245185,-250.0,0.00015616,2]
[421310386,1777402245194,-2264.68534365,0.00015807,2]
[421310387,1777402245203,-539.42033263,0.00015808,2]
[421310388,1777402245212,-1226.01558816,0.00015808,2]
[421310389,1777402245222,-787.63,0.0001589,2]
[421310390,1777402245231,-3143.71198021,0.00015999,2]
[421310391,1777402245240,-160.0,0.00016,3]
[421310392,1777402245249,-183.83625368,0.00016,2]
[421310393,1777402245258,-150.0,0.00016,2]
[421310394,1777402245268,-162.29107849,0.00016,3]
[421310395,1777402245277,-279.1736528,0.00016,2]
[421310396,1777402245287,-200.0,0.00016,2]
[421310397,1777402245297,-269.7,0.00016066,2]
[421310398,1777402245306,-279.1736528,0.000161,2]
[421310400,1777402245316,-470.0,0.0001611,15]
[421310402,1777402245325,-9999.99,0.00016116,2]
[421310404,1777402245335,-787.63,0.00016164,2]
[421310406,1777402245346,-350.0,0.00016164,2]
[421310408,1777402245355,-1621.22608651,0.00016179,2]
[421310410,1777402245364,-279.1736528,0.000162,2]
[421310412,1777402245374,-637.28,0.00016268,2]
[421310414,1777402245384,-637.28,0.00016268,2]
[421310416,1777402245393,-637.28,0.00016268,2]
[421310418,1777402245403,-637.28,0.00016268,2]
[421310420,1777402245413,-637.27,0.00016268,2]
[421310421,1777402245422,-10000.0,0.000164,2]
[421310422,1777402245432,-10000.0,0.000164,2]
[421310424,1777402245442,-10094.0,0.000164,2]
[421310425,1777402245452,-500.0,0.00016436,2]
[421310426,1777402245462,-1118.78,0.00016436,2]
[421310427,1777402245472,-500.0,0.00016436,2]
[421310428,1777402245481,-536.09,0.00016436,2]
[421310429,1777402245491,-714.97,0.00016436,2]
[421310430,1777402245501,-1824.27,0.00016436,2]
[421310432,1777402245510,-1048.28,0.00016436,2]
[421310433,1777402245519,-500.0,0.00016436,2]
[421310435,1777402245528,-500.0,0.00016436,2]
[421310436,1777402245537,-607.8,0.00016437,2]
[421310437,1777402245547,-592.74,0.00016437,2]
[421310438,1777402245556,-978.93,0.00016437,2]
[421310439,1777402245566,-1390.29,0.00016438,2]
[421310440,1777402245575,-2317.16,0.00016438,2]